[Event "Panevezys Elite Open 2019"]
[Site "Panevezys"]
[Date "2019.06.28"]
[Round "7.12"]
[White "Zaura, Vidmantas"]
[Black "Juksta, Karolis"]
[Result "0-1"]
[ECO "A09"]
[WhiteElo "2223"]
[BlackElo "2261"]
[Annotator "NA"]
[PlyCount "44"]
[EventDate "2019.06.24"]
[EventType "swiss"]
[EventCountry "LTU"]
[SourceTitle "playchess.com"]
[Source "ChessBase"]
[SourceQuality "1"]
[TimeControl "40/5400+30:1800+30"]

1. Nf3 {[%emt 0:00:00]} d5 {[%emt 0:00:00]} 2. c4 {[%emt 0:00:00]} d4 {[%emt 0:00:00]} 3. e3 {[%emt 0:00:15]} Nc6 {[%emt 0:00:11]} 4. exd4 {[%emt 0:00:37]} Nxd4 {[%emt 0:00:18]} 5. Nxd4 {[%emt 0:00:12]} Qxd4 {[%emt 0:00:02]} 6. Nc3 {[%emt 0:00:14]} c6 {[%emt 0:00:06]} 7. Be2 {[%emt 0:00:49]} Nh6 {[%emt 0:02:47]} 8. O-O {[%emt 0:01:57]} Nf5 {[%emt 0:00:39]} 9. b4 {[%emt 0:02:59]} e5 {[%emt 0:18:45]} 10. b5 {[%emt 0:08:29]} Be7 {[%emt 0:03:04]} 11. bxc6 {[%emt 0:02:21]} bxc6 {[%emt 0:00:04]} 12. Bf3 {[%emt 0:17:47]} Qd7 {[%emt 0:19:00]} 13. Re1 {[%emt 0:04:24]} f6 {[%emt 0:00:46]} 14. Ne2 {[%emt 0:16:50]} Nh4 {[%emt 0:07:40]} 15. Be4 {[%emt 0:09:19]} f5 {[%emt 0:00:43]} 16. Bc2 {[%emt 0:00:17]} O-O {[%emt 0:04:35]} 17. Rb1 {[%emt 0:02:18]} f4 {[%emt 0:07:29]} 18. d4 {[%emt 0:11:12]} Qg4 {[%emt 0:07:28]} 19. Nxf4 {[%emt 0:00:21]} Rxf4 {[%emt 0:00:25]} 20. Qxg4 {[%emt 0:02:15]} Rxg4 {[%emt 0:00:02]} 21. Be4 {[%emt 0:01:36]} Rxe4 {[%emt 0:00:36]} 22. Rxe4 {[%emt 0:02:15]} Bf5 {[%emt 0:00:01]} 0-1

[Event "Panevezys Elite Open 2019"]
[Site "Panevezys"]
[Date "2019.06.28"]
[Round "7.13"]
[White "Stasans, Aivars"]
[Black "Kalinowska, Zuzanna"]
[Result "1-0"]
[ECO "C17"]
[WhiteElo "2039"]
[BlackElo "2093"]
[Annotator "NA"]
[PlyCount "87"]
[EventDate "2019.06.24"]
[EventType "swiss"]
[EventCountry "LTU"]
[SourceTitle "playchess.com"]
[Source "ChessBase"]
[SourceQuality "1"]
[TimeControl "40/5400+30:1800+30"]

1. e4 {[%emt 0:00:00]} e6 {[%emt 0:00:00]} 2. d4 {[%emt 0:00:00]} d5 {[%emt 0:00:00]} 3. Nc3 {[%emt 0:00:00]} Bb4 {[%emt 0:00:00]} 4. e5 {[%emt 0:00:00]} c5 {[%emt 0:00:00]} 5. Bd2 {[%emt 0:00:03]} Bxc3 {[%emt 0:06:05]} 6. Bxc3 {[%emt 0:00:17]} b6 {[%emt 0:00:28]} 7. Qg4 {[%emt 0:03:25]} Kf8 {[%emt 0:06:00]} 8. Nf3 {[%emt 0:00:56]} Ba6 {[%emt 0:04:37]} 9. Bxa6 {[%emt 0:02:09]} Nxa6 {[%emt 0:00:07]} 10. h4 {[%emt 0:03:47]} Nb4 {[%emt 0:07:35]} 11. Bxb4 {[%emt 0:04:03]} cxb4 {[%emt 0:00:08]} 12. O-O {[%emt 0:00:17]} Rc8 {[%emt 0:14:45]} 13. Rfc1 {[%emt 0:02:24]} h5 {[%emt 0:01:32]} 14. Qf4 {[%emt 0:00:14]} Ne7 {[%emt 0:03:02]} 15. Qd2 {[%emt 0:07:57]} a5 {[%emt 0:06:10]} 16. c3 {[%emt 0:02:37]} bxc3 {[%emt 0:05:24]} 17. Rxc3 {[%emt 0:00:27]} Rxc3 {[%emt 0:04:49]} 18. Qxc3 {[%emt 0:00:22]} f6 {[%emt 0:00:37]} 19. Rc1 {[%emt 0:09:37]} Kf7 {[%emt 0:01:25]} 20. Qd3 {[%emt 0:00:24]} Qd7 {[%emt 0:02:06]} 21. g3 {[%emt 0:02:24]} Nf5 {[%emt 0:02:36]} 22. Qc3 {[%emt 0:03:11]} Ne7 {[%emt 0:02:04]} 23. Qd3 {[%emt 0:00:53]} Nf5 {[%emt 0:00:15]} 24. Qa6 {[%emt 0:01:06]} Rb8 {[%emt 0:00:51]} 25. Kg2 {[%emt 0:01:24]} Rb7 {[%emt 0:04:42]} 26. Qa8 {[%emt 0:02:13]} Rc7 {[%emt 0:04:57]} 27. Rxc7 {[%emt 0:00:38]} Qxc7 {[%emt 0:00:07]} 28. Qh8 {[%emt 0:00:11]} Kg6 {[%emt 0:01:35]} 29. Qe8+ {[%emt 0:03:24]} Qf7 {[%emt 0:00:45]} 30. Qc6 {[%emt 0:00:09]} Kh6 {[%emt 0:02:47]} 31. Qxb6 {[%emt 0:01:45]} g5 {[%emt 0:01:13]} 32. Qxa5 {[%emt 0:08:42]} g4 {[%emt 0:04:30]} 33. Ng1 {[%emt 0:02:23]} fxe5 {[%emt 0:02:10]} 34. dxe5 {[%emt 0:01:22]} Qb7 {[%emt 0:01:01]} 35. Qd2+ {[%emt 0:02:23]} Kh7 {[%emt 0:00:12]} 36. Ne2 {[%emt 0:22:22]} d4+ {[%emt 0:02:01]} 37. Kg1 {[%emt 0:00:19]} Qe4 {[%emt 0:00:54]} 38. Nf4 {[%emt 0:00:26]} Qb1+ {[%emt 0:07:47]} 39. Kg2 {[%emt 0:00:55]} Qe4+ {[%emt 0:00:25]} 40. Kg1 {[%emt 0:03:52]} Qb1+ {[%emt 0:00:10]} 41. Kh2 {[%emt 0:32:32]} d3 {[%emt 0:30:46]} 42. Qxd3 {[%emt 0:04:24]} Qxb2 {[%emt 0:00:27]} 43. Qe2 {[%emt 0:00:38]} Qb7 {[%emt 0:00:00]} 44. Nxe6 {[%emt 0:00:00]} 1-0

[Event "Panevezys Elite Open 2019"]
[Site "Panevezys"]
[Date "2019.06.29"]
[Round "8.2"]
[White "Badelka, Olga"]
[Black "Harutjunyan, Gevorg"]
[Result "1/2-1/2"]
[ECO "E20"]
[WhiteElo "2391"]
[BlackElo "2446"]
[Annotator "NA RC"]
[PlyCount "83"]
[EventDate "2019.06.24"]
[EventType "swiss"]
[EventCountry "LTU"]
[SourceTitle "playchess.com"]
[Source "ChessBase"]
[SourceQuality "1"]
[TimeControl "40/5400+30:1800+30"]

1. d4 {[%emt 0:00:00]} Nf6 {[%emt 0:00:00]} 2. c4 {[%emt 0:00:00]} e6 {[%emt 0:00:00]} 3. Nc3 {[%emt 0:00:00]} Bb4 {[%emt 0:00:03]} 4. Bd2 {[%emt 0:00:38]} O-O {[%emt 0:04:53]} 5. Nf3 {[%emt 0:00:12]} b6 {[%emt 0:02:31]} 6. e3 {[%emt 0:00:13]} Bb7 {[%emt 0:00:50]} 7. Bd3 {[%emt 0:00:11]} d5 {[%emt 0:00:54]} 8. cxd5 {[%emt 0:00:40]} exd5 {[%emt 0:00:10]} 9. O-O {[%emt 0:01:22]} Re8 {[%emt 0:04:52] E52: Nimzo-Indian: Rubinstein: 4...0-0 5 Nf3 d5 6 Bd3 b6} (9... Be7 10. Ne5 c5 11. Be1 Nc6 12. f3 cxd4 13. Nxc6 Bxc6 14. exd4 Bd6 15. Bh4 h6 16. Rc1 Bf4 17. Rc2 {1-0 (34) Fedoseev,V (2683)-Cheparinov,I (2667) Hengshui 2019}) 10. Rc1 {[%emt 0:04:13]} a6 {[%emt 0:02:05]} 11. Ne5 {[%emt 0:04:16]} Bd6 {[%emt 0:07:33]} 12. f4 {[%emt 0:01:19]} Nbd7 {[%emt 0:00:31]} 13. g4 $146 {[%emt 0:04:09]} ({Predecessor:} 13. Be1 c5 14. Bh4 Qc7 15. Qf3 Be7 16. Qh3 Nf8 17. g4 {1-0 (27) Rakhimzhan,A (2320)-Nukin,T (2155) Pavlodar 2019}) 13... b5 {[%emt 0:07:12]} 14. g5 {[%emt 0:10:00]} Ne4 {[%emt 0:01:07]} 15. Nxe4 {[%emt 0:01:08]} dxe4 {[%emt 0:00:35]} 16. Be2 {[%emt 0:00:21]} Nb6 {[%emt 0:24:45]} 17. Nc6 {[%emt 0:08:24]} Qd7 {[%emt 0:00:04]} 18. Bg4 {[%emt 0:01:59]} Re6 {[%emt 0:00:26]} 19. Ne5 {[%emt 0:08:17]} Qe8 {[%emt 0:03:43]} 20. Bxe6 {[%emt 0:00:21]} Qxe6 {[%emt 0:01:46]} 21. b3 {[%emt 0:02:33]} a5 {[%emt 0:02:57]} 22. f5 {[%emt 0:05:48]} Qd5 {[%emt 0:09:15]} 23. g6 $18 {[%emt 0:01:11]} fxg6 {[%emt 0:05:46]} 24. fxg6 {[%emt 0:00:10]} hxg6 {[%emt 0:03:48]} 25. Qg4 {[%emt 0:05:13]} Bxe5 {[%emt 0:00:33]} 26. dxe5 {[%emt 0:00:03]} Qxd2 {[%emt 0:00:46]} 27. Qe6+ {[%emt 0:00:08]} Kh7 {[%emt 0:00:35]} 28. Qh3+ {[%emt 0:00:04]} Kg8 {[%emt 0:00:00]} 29. Rxc7 {[%emt 0:02:40]} Nd5 {[%emt 0:07:20]} 30. Rxb7 {[%emt 0:00:25]} Nxe3 {[%emt 0:00:35]} 31. Qe6+ {[%emt 0:08:22]} Kh7 {[%emt 0:00:14]} 32. Qh3+ {[%emt 0:06:26]} Kg8 {[%emt 0:00:07]} 33. Rd7 {[%emt 0:02:19]} Qe2 {[%emt 0:00:31]} 34. Rc1 {[%emt 0:03:27]} Nf5 {[%emt 0:04:29]} 35. Rdc7 {[%emt 0:09:50]} Rd8 {[%emt 0:05:23]} 36. e6 {[%emt 0:05:45]} Rd1+ {[%emt 0:00:42]} 37. Rxd1 {[%emt 0:00:03]} Qxd1+ {[%emt 0:00:03]} 38. Qf1 {[%emt 0:00:04]} Qg4+ {[%emt 0:00:11]} 39. Qg2 {[%emt 0:03:12]} Qd1+ {[%emt 0:00:18]} 40. Qf1 {[%emt 0:00:03]} Qg4+ {[%emt 0:00:15]} 41. Qg2 {[%emt 0:30:04]} Qd1+ {[%emt 0:30:18]} 42. Qf1 {[%emt 0:00:02]} 1/2-1/2

[Event "Panevezys Elite Open 2019"]
[Site "Panevezys"]
[Date "2019.06.29"]
[Round "8.3"]
[White "Krykun, Yuriy"]
[Black "Laurusas, Tomas"]
[Result "1/2-1/2"]
[ECO "A06"]
[WhiteElo "2342"]
[BlackElo "2507"]
[Annotator "RC"]
[PlyCount "102"]
[EventDate "2019.06.24"]
[EventType "swiss"]
[EventCountry "LTU"]
[SourceTitle "playchess.com"]
[Source "ChessBase"]
[SourceQuality "1"]
[TimeControl "40/5400+30:1800+30"]

1. Nf3 {[%emt 0:00:09]} d5 {[%emt 0:01:08]} 2. e3 {[%emt 0:00:15]} c5 {[%emt 0:02:01]} 3. b3 {[%emt 0:04:34]} Nf6 {[%emt 0:03:27]} 4. Bb2 {[%emt 0:00:15]} Nc6 {[%emt 0:01:04]} 5. Bb5 {[%emt 0:02:58]} Bd7 {[%emt 0:00:12]} 6. O-O {[%emt 0:01:39]} e6 {[%emt 0:00:50]} 7. c4 {[%emt 0:03:21]} a6 {[%emt 0:05:55]} 8. Bxc6 {[%emt 0:00:25]} Bxc6 {[%emt 0:00:02]} 9. Ne5 {[%emt 0:00:12]} Rc8 {[%emt 0:00:11]} 10. cxd5 {[%emt 0:04:44]} Qxd5 {[%emt 0:07:11]} 11. Nxc6 {[%emt 0:00:18]} Qxc6 {[%emt 0:00:17]} 12. d4 {[%emt 0:03:48]} Be7 {[%emt 0:01:59]} 13. dxc5 {[%emt 0:00:31]} Qxc5 {[%emt 0:00:07]} 14. Nd2 {[%emt 0:03:55]} O-O {[%emt 0:24:41]} 15. Rc1 {[%emt 0:03:28]} Qf5 {[%emt 0:04:06]} 16. Rxc8 {[%emt 0:02:05]} Rxc8 {[%emt 0:00:14]} 17. Qa1 {[%emt 0:00:14]} Bf8 {[%emt 0:03:42]} 18. Rc1 {[%emt 0:02:15]} Rd8 {[%emt 0:00:59]} 19. Nf3 {[%emt 0:00:29]} Ne4 {[%emt 0:01:01]} 20. Rd1 {[%emt 0:00:26]} Rd5 {[%emt 0:00:51]} 21. Rxd5 {[%emt 0:05:04]} Qxd5 {[%emt 0:00:21]} 22. Qc1 {[%emt 0:00:51]} f6 {[%emt 0:00:49]} 23. Nd4 {[%emt 0:05:00]} e5 {[%emt 0:03:54]} 24. Ne2 {[%emt 0:01:23]} Qd3 {[%emt 0:03:08]} 25. Ng3 {[%emt 0:01:23]} Nc5 {[%emt 0:01:11]} 26. Ba3 {[%emt 0:02:04]} b6 {[%emt 0:00:26]} 27. Qf1 {[%emt 0:02:57]} Kf7 {[%emt 0:02:26]} 28. Qxd3 {[%emt 0:02:58]} Nxd3 {[%emt 0:00:07]} 29. Bxf8 {[%emt 0:00:04]} Kxf8 {[%emt 0:00:07]} 30. Ne2 {[%emt 0:01:17]} b5 {[%emt 0:03:24]} 31. Nc3 {[%emt 0:00:20]} b4 {[%emt 0:02:29]} 32. Nd5 {[%emt 0:03:13]} e4 {[%emt 0:02:48]} 33. Kf1 {[%emt 0:04:20]} Kf7 {[%emt 0:02:40]} 34. f3 {[%emt 0:01:46]} f5 {[%emt 0:01:19]} 35. fxe4 {[%emt 0:00:08]} fxe4 {[%emt 0:00:01]} 36. Ke2 {[%emt 0:03:34]} a5 {[%emt 0:01:12]} 37. Kd2 {[%emt 0:03:35]} g5 {[%emt 0:01:53]} 38. Nc7 {[%emt 0:03:01]} Kf6 {[%emt 0:00:51]} 39. Nb5 {[%emt 0:00:23]} Ke5 {[%emt 0:00:06]} 40. a3 {[%emt 0:01:36]} Nc5 {[%emt 0:00:21]} 41. axb4 {[%emt 0:30:41]} axb4 {[%emt 0:30:20]} 42. Nd4 {[%emt 0:00:04]} Kd5 {[%emt 0:00:14]} 43. Ke2 {[%emt 0:00:15]} h5 {[%emt 0:00:25]} 44. h3 {[%emt 0:00:46]} h4 {[%emt 0:00:11]} 45. Kd2 {[%emt 0:00:13]} Kd6 {[%emt 0:00:24]} 46. Ke2 {[%emt 0:00:10]} Nd3 {[%emt 0:00:21]} 47. Kd2 {[%emt 0:00:21]} Ke5 {[%emt 0:00:10]} 48. Ke2 {[%emt 0:00:38]} Kf6 {[%emt 0:00:05]} 49. Kd2 {[%emt 0:05:54]} g4 {[%emt 0:00:13]} 50. Ke2 {[%emt 0:02:37]} Ke5 {[%emt 0:02:07]} 51. Kf1 {[%emt 0:05:30]} gxh3 {[%emt 0:04:46]} 1/2-1/2

[Event "Panevezys Elite Open 2019"]
[Site "Panevezys"]
[Date "2019.06.29"]
[Round "8.4"]
[White "Stremavicius, Titas"]
[Black "Sulskis, Sarunas"]
[Result "0-1"]
[ECO "A35"]
[WhiteElo "2477"]
[BlackElo "2528"]
[Annotator "ChessBase"]
[PlyCount "214"]
[EventDate "2019.06.24"]
[EventType "swiss"]
[EventCountry "LTU"]
[SourceTitle "playchess.com"]
[Source "ChessBase"]
[SourceQuality "1"]
[TimeControl "40/5400+30:1800+30"]

1. c4 {[%emt 0:00:00]} c5 {[%emt 0:00:00]} 2. Nc3 {[%emt 0:02:09]} Nf6 {[%emt 0:01:28]} 3. Nf3 {[%emt 0:01:32]} Nc6 {[%emt 0:00:19]} 4. e3 {[%emt 0:00:36]} e5 {[%emt 0:00:17]} 5. d4 {[%emt 0:01:24]} e4 {[%emt 0:04:38]} 6. Ne5 {[%emt 0:03:31]} g6 {[%emt 0:00:57]} 7. Be2 {[%emt 0:18:19]} Bg7 {[%emt 0:03:04]} 8. O-O {[%emt 0:01:15]} O-O {[%emt 0:05:09]} 9. Nxc6 {[%emt 0:19:36]} dxc6 {[%emt 0:04:01]} 10. d5 {[%emt 0:00:04]} cxd5 {[%emt 0:05:16]} 11. cxd5 {[%emt 0:02:28]} a6 {[%emt 0:01:12]} 12. a4 {[%emt 0:01:00]} Qd6 {[%emt 0:02:20]} 13. f4 {[%emt 0:06:53]} exf3 {[%emt 0:04:18]} 14. Bxf3 {[%emt 0:00:31]} h5 {[%emt 0:00:22]} 15. e4 {[%emt 0:06:37]} Ng4 {[%emt 0:06:07]} 16. Bxg4 {[%emt 0:00:41]} Bxg4 {[%emt 0:00:09]} 17. Qd3 {[%emt 0:03:11]} Be5 {[%emt 0:10:44]} 18. h3 {[%emt 0:00:24]} Bd7 {[%emt 0:00:42]} 19. Bh6 {[%emt 0:02:05]} c4 {[%emt 0:14:39]} 20. Qe3 {[%emt 0:14:02]} Rfb8 {[%emt 0:03:49]} 21. Qf2 {[%emt 0:03:41]} f6 {[%emt 0:06:15]} 22. Be3 {[%emt 0:02:14]} b6 {[%emt 0:08:27]} 23. a5 {[%emt 0:01:21]} bxa5 {[%emt 0:00:49]} 24. Rxa5 {[%emt 0:00:08]} Re8 {[%emt 0:01:51]} 25. Bc5 {[%emt 0:03:37]} Qc7 {[%emt 0:00:50]} 26. Rfa1 {[%emt 0:00:34]} Rab8 {[%emt 0:03:40]} 27. d6 {[%emt 0:04:29]} Qb7 {[%emt 0:03:07]} 28. R5a2 {[%emt 0:00:51]} Bxc3 {[%emt 0:02:50]} 29. bxc3 {[%emt 0:00:02]} Qxe4 {[%emt 0:00:11]} 30. Bd4 {[%emt 0:00:56]} Re6 {[%emt 0:01:54]} 31. Rxa6 {[%emt 0:00:35]} h4 {[%emt 0:01:32]} 32. Kh2 {[%emt 0:00:41]} g5 {[%emt 0:01:04]} 33. Rf1 {[%emt 0:00:29]} Bc6 {[%emt 0:01:43]} 34. Ra5 {[%emt 0:00:26]} Bd5 {[%emt 0:01:03]} 35. d7 {[%emt 0:00:27]} Rd8 {[%emt 0:00:23]} 36. Re1 {[%emt 0:00:35]} Qxe1 {[%emt 0:00:39]} 37. Qxe1 {[%emt 0:00:30]} Rxe1 {[%emt 0:00:06]} 38. Rxd5 {[%emt 0:00:15]} Re6 {[%emt 0:01:16]} 39. g3 {[%emt 0:00:46]} Kf7 {[%emt 0:01:15]} 40. gxh4 {[%emt 0:00:20]} gxh4 {[%emt 0:00:26]} 41. Kg2 {[%emt 0:30:30]} Re7 {[%emt 0:01:08]} 42. Rd6 {[%emt 0:00:00]} Re6 {[%emt 0:01:52]} 43. Rd5 {[%emt 0:00:00]} Rc6 {[%emt 0:05:57]} 44. Kf3 {[%emt 0:00:00]} Ke6 {[%emt 0:00:41]} 45. Rh5 {[%emt 0:00:00]} Rxd7 {[%emt 0:00:12]} 46. Rxh4 {[%emt 0:00:00]} Rd5 {[%emt 0:02:37]} 47. Ke4 {[%emt 0:00:00]} Rf5 {[%emt 0:02:15]} 48. Rh8 {[%emt 0:00:00]} Rf1 {[%emt 0:00:28]} 49. Re8+ {[%emt 0:00:00]} Kf7 {[%emt 0:00:05]} 50. Ra8 {[%emt 0:00:00]} Rc7 {[%emt 0:02:00]} 51. Kd5 {[%emt 0:00:00]} Kg6 {[%emt 0:07:26]} 52. Rg8+ {[%emt 0:00:00]} Rg7 53. Rxg7+ {[%emt 0:00:00]} Kxg7 {[%emt 0:01:48]} 54. Kxc4 {[%emt 0:00:00]} Rf5 {[%emt 0:02:41]} 55. Kd3 {[%emt 0:00:00]} Kf7 {[%emt 0:00:14]} 56. c4 {[%emt 0:00:00]} Ke6 {[%emt 0:01:56]} 57. Be3 {[%emt 0:00:00]} Rh5 {[%emt 0:00:40]} 58. Bf4 {[%emt 0:00:59]} Rxh3+ {[%emt 0:00:35]} 59. Ke4 {[%emt 0:00:31]} Rh4 {[%emt 0:00:58]} 60. c5 {[%emt 0:00:22]} f5+ {[%emt 0:01:39]} 61. Ke3 {[%emt 0:01:59]} Rh3+ {[%emt 0:01:24]} 62. Kd4 {[%emt 0:00:13]} Rh1 {[%emt 0:01:41]} 63. Ke3 {[%emt 0:02:56]} Rc1 {[%emt 0:02:19]} 64. Bd6 {[%emt 0:00:40]} Rc3+ {[%emt 0:00:48]} 65. Kf4 {[%emt 0:00:12]} Rb3 {[%emt 0:00:36]} 66. Bf8 {[%emt 0:00:50]} Rb4+ {[%emt 0:00:37]} 67. Kf3 {[%emt 0:00:06]} Rb3+ {[%emt 0:00:46]} 68. Kf4 {[%emt 0:00:03]} Rb4+ {[%emt 0:00:04]} 69. Kf3 {[%emt 0:00:36]} Kf6 {[%emt 0:01:11]} 70. Bd6 {[%emt 0:00:20]} Rc4 {[%emt 0:00:14]} 71. Kg3 {[%emt 0:03:09]} Re4 {[%emt 0:00:47]} 72. Bc7 {[%emt 0:00:36]} Rd4 {[%emt 0:00:30]} 73. Bd6 {[%emt 0:00:26]} Rd3+ {[%emt 0:00:38]} 74. Kf4 {[%emt 0:00:15]} Ke6 {[%emt 0:00:14]} 75. Bf8 {[%emt 0:00:22]} Rd1 {[%emt 0:00:48]} 76. Bd6 {[%emt 0:00:59]} Rf1+ {[%emt 0:00:11]} 77. Ke3 {[%emt 0:00:34]} Kf6 {[%emt 0:00:34]} 78. Ke2 {[%emt 0:00:11]} Rb1 {[%emt 0:00:44]} 79. Kf3 {[%emt 0:00:18]} Rb4 {[%emt 0:00:08]} 80. Bc7 {[%emt 0:01:14]} Re4 {[%emt 0:00:29]} 81. Bd8+ {[%emt 0:00:45]} Kg6 {[%emt 0:00:46]} 82. Bc7 {[%emt 0:00:04]} Rb4 {[%emt 0:00:30]} 83. Bd6 {[%emt 0:00:13]} Rb3+ {[%emt 0:00:22]} 84. Kf4 {[%emt 0:00:14]} Rc3 {[%emt 0:00:09]} 85. Be7 {[%emt 0:01:42]} Kf7 {[%emt 0:00:31]} 86. Bd6 {[%emt 0:00:14]} Ke6 {[%emt 0:00:10]} 87. Bf8 {[%emt 0:00:19]} Rb3 {[%emt 0:01:23]} 88. Bd6 {[%emt 0:00:12]} Ra3 {[%emt 0:00:15]} 89. Bf8 {[%emt 0:00:39]} Kf6 {[%emt 0:00:49]} 90. Bd6 {[%emt 0:00:20]} Ra4+ {[%emt 0:00:18]} 91. Kf3 {[%emt 0:00:07]} Ra1 {[%emt 0:00:20]} 92. Kg3 {[%emt 0:01:45]} Re1 {[%emt 0:00:26]} 93. Kf3 {[%emt 0:00:32]} Ke6 {[%emt 0:00:46]} 94. Kf4 {[%emt 0:00:24]} Rf1+ {[%emt 0:00:23]} 95. Ke3 {[%emt 0:00:18]} Kd5 {[%emt 0:00:43]} 96. Ke2 {[%emt 0:00:29]} Rg1 {[%emt 0:00:23]} 97. Kf2 {[%emt 0:00:42]} Rg8 {[%emt 0:00:24]} 98. Ke3 {[%emt 0:00:22]} Rg4 {[%emt 0:00:39]} 99. Kf3 {[%emt 0:00:57]} Kd4 {[%emt 0:00:17]} 100. Bf8 {[%emt 0:01:30]} Rg1 {[%emt 0:00:46]} 101. Bd6 {[%emt 0:00:20]} Rc1 {[%emt 0:00:26]} 102. Kf4 {[%emt 0:00:45]} Rf1+ {[%emt 0:00:16]} 103. Kg5 {[%emt 0:00:26]} Ke4 {[%emt 0:00:40]} 104. Kf6 {[%emt 0:00:33]} f4 {[%emt 0:00:21]} 105. Ke6 {[%emt 0:00:28]} f3 {[%emt 0:00:12]} 106. Bg3 {[%emt 0:00:31]} Rg1 {[%emt 0:00:11]} 107. Bf2 {[%emt 0:00:25]} Rg6+ {[%emt 0:00:17] Ke5+ Kxe5} 0-1

[Event "Panevezys Elite Open 2019"]
[Site "Panevezys"]
[Date "2019.06.29"]
[Round "8.7"]
[White "Kubicka, Anna"]
[Black "Zhukov, Anton"]
[Result "1-0"]
[ECO "B20"]
[WhiteElo "2162"]
[BlackElo "2178"]
[Annotator "NA"]
[PlyCount "85"]
[EventDate "2019.06.24"]
[EventType "swiss"]
[EventCountry "LTU"]
[SourceTitle "playchess.com"]
[Source "ChessBase"]
[SourceQuality "1"]
[TimeControl "40/5400+30:1800+30"]

1. e4 {[%emt 0:03:40]} c5 {[%emt 0:00:00]} 2. Ne2 {[%emt 0:00:21]} d6 {[%emt 0:00:00]} 3. g3 {[%emt 0:00:03]} g6 {[%emt 0:01:30]} 4. Bg2 {[%emt 0:00:07]} Bg7 {[%emt 0:00:08]} 5. c3 {[%emt 0:00:03]} Nc6 {[%emt 0:06:47]} 6. d4 {[%emt 0:00:18]} cxd4 {[%emt 0:05:35]} 7. cxd4 {[%emt 0:00:26]} Nf6 {[%emt 0:02:45]} 8. O-O {[%emt 0:00:12]} O-O {[%emt 0:01:18]} 9. Nbc3 {[%emt 0:00:07]} e5 {[%emt 0:04:00]} 10. d5 {[%emt 0:03:43]} Ne7 {[%emt 0:01:28]} 11. Qb3 {[%emt 0:00:37]} Nd7 {[%emt 0:02:30]} 12. Qa3 {[%emt 0:03:06]} Nc5 {[%emt 0:07:38]} 13. Be3 {[%emt 0:04:38]} b6 {[%emt 0:02:25]} 14. b4 {[%emt 0:00:56]} Na6 {[%emt 0:00:44]} 15. Qb3 {[%emt 0:05:44]} f5 {[%emt 0:02:33]} 16. f3 {[%emt 0:00:24]} Bb7 {[%emt 0:01:14]} 17. a4 {[%emt 0:00:51]} Qd7 $16 {[%emt 0:03:29]} 18. Nb5 {[%emt 0:08:54]} Nc7 {[%emt 0:02:18]} 19. Nxc7 {[%emt 0:12:02]} Qxc7 {[%emt 0:00:05]} 20. Qd3 {[%emt 0:25:06]} Rac8 {[%emt 0:02:13]} 21. Rfc1 {[%emt 0:01:30]} Qd7 {[%emt 0:00:30]} 22. a5 {[%emt 0:01:21]} Rxc1+ {[%emt 0:01:33]} 23. Rxc1 {[%emt 0:00:02]} b5 {[%emt 0:01:04]} 24. a6 {[%emt 0:07:21]} Bxa6 {[%emt 0:01:11]} 25. Ra1 {[%emt 0:00:14]} Bb7 {[%emt 0:03:40]} 26. Rxa7 {[%emt 0:00:18]} Rc8 {[%emt 0:04:19]} 27. Nc3 {[%emt 0:02:30]} Rc4 {[%emt 0:00:43]} 28. Nxb5 {[%emt 0:05:53]} Rxb4 {[%emt 0:02:21]} 29. Bf1 {[%emt 0:01:05]} Nc8 {[%emt 0:01:18]} 30. Ra3 {[%emt 0:00:30]} fxe4 {[%emt 0:00:47]} 31. fxe4 {[%emt 0:00:01]} Qg4 {[%emt 0:01:15]} 32. Nc3 {[%emt 0:03:31]} Nb6 {[%emt 0:01:11]} 33. Na2 {[%emt 0:03:45]} Rb2 {[%emt 0:15:18]} 34. Bc1 {[%emt 0:01:40]} Rxa2 {[%emt 0:00:56]} 35. Rxa2 {[%emt 0:00:01]} Nd7 {[%emt 0:00:18]} 36. Qe2 {[%emt 0:03:38]} Qxe2 {[%emt 0:01:32]} 37. Bxe2 {[%emt 0:00:02]} Nc5 {[%emt 0:00:32]} 38. Ra7 {[%emt 0:01:17]} Bf8 {[%emt 0:00:49]} 39. Be3 {[%emt 0:00:43]} Bc8 {[%emt 0:00:05]} 40. Ra8 {[%emt 0:00:16]} Bh3 {[%emt 0:00:22]} 41. Bh6 {[%emt 0:30:47]} Nd7 {[%emt 0:30:04]} 42. Bb5 {[%emt 0:00:51]} Kf7 {[%emt 0:00:06]} 43. Bxd7 {[%emt 0:00:09]} 1-0

[Event "Panevezys Elite Open 2019"]
[Site "Panevezys"]
[Date "2019.06.29"]
[Round "8.8"]
[White "Juksta, Karolis"]
[Black "Sliwicka, Alicja"]
[Result "1/2-1/2"]
[ECO "A57"]
[WhiteElo "2261"]
[BlackElo "2261"]
[Annotator "NA"]
[PlyCount "52"]
[EventDate "2019.06.24"]
[EventType "swiss"]
[EventCountry "LTU"]
[SourceTitle "playchess.com"]
[Source "ChessBase"]
[SourceQuality "1"]
[TimeControl "40/5400+30:1800+30"]

1. d4 {[%emt 0:00:00]} Nf6 {[%emt 0:03:24]} 2. c4 {[%emt 0:00:00]} c5 {[%emt 0:00:17]} 3. d5 {[%emt 0:00:00]} b5 {[%emt 0:00:10]} 4. cxb5 {[%emt 0:00:00]} a6 {[%emt 0:00:07]} 5. f3 {[%emt 0:02:04]} axb5 {[%emt 0:00:11]} 6. e4 {[%emt 0:00:05]} Qa5+ {[%emt 0:00:13]} 7. Bd2 {[%emt 0:01:28]} b4 {[%emt 0:00:10]} 8. Na3 {[%emt 0:00:07]} d6 {[%emt 0:00:08]} 9. Nc4 {[%emt 0:00:07]} Qd8 {[%emt 0:00:21]} 10. a3 {[%emt 0:01:19]} e6 {[%emt 0:01:14]} 11. dxe6 {[%emt 0:03:34]} Bxe6 {[%emt 0:00:58]} 12. axb4 {[%emt 0:00:32]} Rxa1 {[%emt 0:00:16]} 13. Qxa1 {[%emt 0:00:02]} d5 {[%emt 0:02:32]} 14. exd5 {[%emt 0:01:58]} Nxd5 {[%emt 0:02:09]} 15. Qa4+ {[%emt 0:02:09]} Nd7 {[%emt 0:03:51]} 16. Ne2 {[%emt 0:22:22]} Be7 $15 {[%emt 0:09:43]} 17. bxc5 {[%emt 0:10:33]} Bxc5 {[%emt 0:00:32]} 18. b4 {[%emt 0:00:32]} N5b6 {[%emt 0:02:02]} 19. Qc2 {[%emt 0:18:26]} Nxc4 {[%emt 0:07:43]} 20. bxc5 {[%emt 0:00:33]} O-O {[%emt 0:06:25]} 21. Ng3 {[%emt 0:04:14]} Nxd2 {[%emt 0:03:41]} 22. Qxd2 {[%emt 0:00:06]} Qc7 {[%emt 0:02:56]} 23. Ne4 {[%emt 0:06:17]} Rb8 {[%emt 0:06:08]} 24. Be2 {[%emt 0:08:08]} Nxc5 {[%emt 0:03:01]} 25. O-O {[%emt 0:00:39]} Nxe4 {[%emt 0:01:45]} 26. fxe4 {[%emt 0:00:02]} Qc5+ {[%emt 0:04:49]} 1/2-1/2